[Event "Titled Tuesday Blitz September 28 2021"]
[White "Devaev, Alexander"]
[Black "Gabrielian, Artur"]
[WhiteFideId "4169395"]
[BlackFideId "4131002"]
[WhiteElo "2185"]
[BlackElo "2489"]
[Result "0-1"]
[Round "03"]
[TimeControl "180+1"]
[Date "2021.09.28"]
[WhiteClock "0:00:01"]
[BlackClock "0:02:05"]

1. d4 {[%clk 0:02:40]}  Nf6 {[%clk 0:02:59]} 2. c4 {[%clk 0:02:40]}  c5 {[%clk 0:02:59]} 3. d5 {[%clk 0:02:40]}  e6 {[%clk 0:02:58]} 4. Nc3 {[%clk 0:02:40]}  exd5 {[%clk 0:02:59]} 5. cxd5 {[%clk 0:02:41]}  d6 {[%clk 0:02:59]} 6. e4 {[%clk 0:02:41]}  g6 {[%clk 0:03:00]} 7. Nf3 {[%clk 0:02:42]}  Bg7 {[%clk 0:03:00]} 8. Bd3 {[%clk 0:02:42]}  O-O {[%clk 0:03:00]} 9. h3 {[%clk 0:02:43]}  Re8 {[%clk 0:03:00]} 10. O-O {[%clk 0:02:43]}  Nbd7 {[%clk 0:03:01]} 11. Bf4 {[%clk 0:02:42]}  c4 {[%clk 0:03:01]} 12. Bc2 {[%clk 0:02:37]}  Nc5 {[%clk 0:03:01]} 13. Re1 {[%clk 0:02:36]}  b5 {[%clk 0:03:01]} 14. a3 {[%clk 0:02:23]}  a6 {[%clk 0:03:01]} 15. Qd2 {[%clk 0:01:43]}  Bb7 {[%clk 0:02:44]} 16. Rad1 {[%clk 0:01:43]}  Rc8 {[%clk 0:02:41]} 17. Kh1 {[%clk 0:01:33]}  Qb6 {[%clk 0:02:40]} 18. Nd4 {[%clk 0:01:26]}  Nfd7 {[%clk 0:02:34]} 19. Nc6 {[%clk 0:01:07]}  a5 {[%clk 0:02:19]} 20. Nd4 {[%clk 0:00:41]}  b4 {[%clk 0:02:12]} 21. Na4 {[%clk 0:00:28]}  Nxa4 {[%clk 0:02:12]} 22. Bxa4 {[%clk 0:00:28]}  c3 {[%clk 0:02:12]} 23. bxc3 {[%clk 0:00:27]}  bxc3 {[%clk 0:02:13]} 24. Qe3 {[%clk 0:00:12]}  Re7 {[%clk 0:02:12]} 25. Nc6 {[%clk 0:00:10]}  Bxc6 {[%clk 0:02:13]} 26. Bxc6 {[%clk 0:00:10]}  Qxe3 {[%clk 0:02:09]} 27. Rxe3 {[%clk 0:00:08]}  Ne5 {[%clk 0:02:09]} 28. Rxc3 {[%clk 0:00:06]}  f5 {[%clk 0:02:09]} 29. f3 {[%clk 0:00:04]}  fxe4 {[%clk 0:02:09]} 30. fxe4 {[%clk 0:00:05]}  Nf7 {[%clk 0:02:09]} 31. Rc4 {[%clk 0:00:04]}  Rb8 {[%clk 0:02:08]} 32. a4 {[%clk 0:00:03]}  h5 {[%clk 0:02:07]} 33. Bb5 {[%clk 0:00:03]}  Be5 {[%clk 0:02:06]} 34. Be3 {[%clk 0:00:02]}  Rf8 {[%clk 0:02:05]} 35. Rc6 {[%clk 0:00:01]}  Bg3 {[%clk 0:02:05]} 0-1


[Site "https://www.chess.com"]

[Event "Titled Tuesday Blitz September 28 2021"]
[White "Erdogdu, Mert"]
[Black "Lashkin, Jegor"]
[WhiteFideId "6301495"]
[BlackFideId "13907808"]
[WhiteElo "2688"]
[BlackElo "2911"]
[Result "0-1"]
[Round "03"]
[TimeControl "180+1"]
[Date "2021.09.28"]
[WhiteClock "0:01:03"]
[BlackClock "0:01:27"]

1. e4 {[%clk 0:03:00]}  c5 {[%clk 0:02:59]} 2. Nf3 {[%clk 0:03:00]}  d6 {[%clk 0:03:00]} 3. d4 {[%clk 0:03:01]}  cxd4 {[%clk 0:03:00]} 4. Nxd4 {[%clk 0:03:02]}  Nf6 {[%clk 0:03:01]} 5. Nc3 {[%clk 0:03:03]}  a6 {[%clk 0:03:01]} 6. Be3 {[%clk 0:03:03]}  e5 {[%clk 0:03:01]} 7. Nb3 {[%clk 0:03:03]}  Be6 {[%clk 0:03:01]} 8. f3 {[%clk 0:03:03]}  h5 {[%clk 0:03:01]} 9. Qd2 {[%clk 0:03:02]}  Nbd7 {[%clk 0:03:00]} 10. O-O-O {[%clk 0:03:02]}  Rc8 {[%clk 0:02:59]} 11. h3 {[%clk 0:03:02]}  Be7 {[%clk 0:02:59]} 12. Bd3 {[%clk 0:03:02]}  h4 {[%clk 0:02:59]} 13. Kb1 {[%clk 0:03:02]}  b5 {[%clk 0:02:58]} 14. f4 {[%clk 0:02:54]}  Qc7 {[%clk 0:02:58]} 15. Rhe1 {[%clk 0:02:52]}  O-O {[%clk 0:02:57]} 16. f5 {[%clk 0:02:44]}  Bc4 {[%clk 0:02:56]} 17. Bg5 {[%clk 0:02:10]}  b4 {[%clk 0:02:53]} 18. Ne2 {[%clk 0:01:58]}  a5 {[%clk 0:02:29]} 19. Ng1 {[%clk 0:01:43]}  a4 {[%clk 0:02:29]} 20. Nc1 {[%clk 0:01:43]}  Bxd3 {[%clk 0:02:11]} 21. cxd3 {[%clk 0:01:42]}  b3 {[%clk 0:02:10]} 22. a3 {[%clk 0:01:33]}  d5 {[%clk 0:01:51]} 23. Re2 {[%clk 0:01:09]}  Nxe4 {[%clk 0:01:27]} 24. dxe4 {[%clk 0:01:04]}  Bxg5 {[%clk 0:01:27]} 25. Qxg5 {[%clk 0:01:03]}  Qc2+ {[%clk 0:01:27]} 0-1


[Site "https://www.chess.com"]

[Event "Titled Tuesday Blitz September 28 2021"]
[White "Gaehwiler, Gabriel"]
[Black "Balabayeva, Xeniya"]
[WhiteFideId "1314530"]
[BlackFideId "13719688"]
[WhiteElo "2320"]
[BlackElo "1965"]
[Result "0-1"]
[Round "03"]
[TimeControl "180+1"]
[Date "2021.09.28"]
[WhiteClock "0:01:59"]
[BlackClock "0:00:30"]

1. d4 {[%clk 0:03:00]}  d5 {[%clk 0:02:59]} 2. c4 {[%clk 0:03:00]}  e6 {[%clk 0:02:59]} 3. Nf3 {[%clk 0:03:00]}  a6 {[%clk 0:02:58]} 4. Nbd2 {[%clk 0:03:00]}  dxc4 {[%clk 0:02:55]} 5. Nxc4 {[%clk 0:03:01]}  b5 {[%clk 0:02:56]} 6. Nce5 {[%clk 0:03:01]}  Bb7 {[%clk 0:02:55]} 7. g3 {[%clk 0:03:02]}  Nd7 {[%clk 0:02:53]} 8. Nd3 {[%clk 0:03:01]}  Ngf6 {[%clk 0:02:50]} 9. Bg2 {[%clk 0:03:01]}  Be7 {[%clk 0:02:47]} 10. Bg5 {[%clk 0:03:01]}  O-O {[%clk 0:02:45]} 11. Rc1 {[%clk 0:03:00]}  Rc8 {[%clk 0:02:30]} 12. Bxf6 {[%clk 0:02:59]}  Bxf6 {[%clk 0:02:21]} 13. e3 {[%clk 0:02:50]}  Qe7 {[%clk 0:02:03]} 14. O-O {[%clk 0:02:45]}  c5 {[%clk 0:02:00]} 15. dxc5 {[%clk 0:02:44]}  Nxc5 {[%clk 0:01:59]} 16. Qe2 {[%clk 0:02:35]}  Nxd3 {[%clk 0:01:49]} 17. Qxd3 {[%clk 0:02:35]}  Bxb2 {[%clk 0:01:26]} 18. Rb1 {[%clk 0:02:36]}  Bf6 {[%clk 0:01:21]} 19. a4 {[%clk 0:02:25]}  b4 {[%clk 0:01:15]} 20. a5 {[%clk 0:02:24]}  Rc3 {[%clk 0:01:07]} 21. Qd1 {[%clk 0:02:22]}  Be4 {[%clk 0:00:58]} 22. Ra1 {[%clk 0:02:15]}  Rd3 {[%clk 0:00:50]} 23. Qa4 {[%clk 0:02:11]}  Bxa1 {[%clk 0:00:35]} 24. Rxa1 {[%clk 0:02:12]}  Bxf3 {[%clk 0:00:34]} 25. Rf1 {[%clk 0:02:12]}  Bxg2 {[%clk 0:00:33]} 26. Kxg2 {[%clk 0:02:09]}  Rc8 {[%clk 0:00:32]} 27. Rc1 {[%clk 0:01:59]}  Rxc1 {[%clk 0:00:30]} 0-1


[Site "https://www.chess.com"]

[Event "Titled Tuesday Blitz September 28 2021"]
[White "Garv Gaur"]
[Black "Samsonkin, Artiom"]
[WhiteFideId "45030839"]
[BlackFideId "13503111"]
[WhiteElo "1950"]
[BlackElo "2513"]
[Result "1/2-1/2"]
[Round "03"]
[TimeControl "180+1"]
[Date "2021.09.28"]
[WhiteClock "0:00:35"]
[BlackClock "0:00:05"]

1. d4 {[%clk 0:03:00]}  Nf6 {[%clk 0:02:59]} 2. Nf3 {[%clk 0:03:00]}  e6 {[%clk 0:02:59]} 3. c4 {[%clk 0:03:01]}  Bb4+ {[%clk 0:02:58]} 4. Bd2 {[%clk 0:03:01]}  Qe7 {[%clk 0:02:58]} 5. g3 {[%clk 0:03:01]}  Nc6 {[%clk 0:02:58]} 6. Bg2 {[%clk 0:03:01]}  Bxd2+ {[%clk 0:02:58]} 7. Nbxd2 {[%clk 0:03:02]}  d6 {[%clk 0:02:58]} 8. O-O {[%clk 0:03:02]}  O-O {[%clk 0:02:58]} 9. Nb1 {[%clk 0:02:59]}  e5 {[%clk 0:02:55]} 10. d5 {[%clk 0:02:59]}  Nb8 {[%clk 0:02:54]} 11. Nc3 {[%clk 0:03:00]}  a5 {[%clk 0:02:53]} 12. e4 {[%clk 0:02:59]}  Na6 {[%clk 0:02:54]} 13. Ne1 {[%clk 0:02:59]}  Bg4 {[%clk 0:02:54]} 14. f3 {[%clk 0:02:59]}  Bd7 {[%clk 0:02:55]} 15. Nd3 {[%clk 0:02:59]}  c6 {[%clk 0:02:53]} 16. Qb3 {[%clk 0:02:58]}  Rfc8 {[%clk 0:02:38]} 17. Rac1 {[%clk 0:02:53]}  h5 {[%clk 0:02:34]} 18. h4 {[%clk 0:02:50]}  Kh7 {[%clk 0:02:31]} 19. Rfd1 {[%clk 0:02:43]}  Rg8 {[%clk 0:02:02]} 20. c5 {[%clk 0:02:26]}  dxc5 {[%clk 0:01:49]} 21. Na4 {[%clk 0:02:16]}  c4 {[%clk 0:01:41]} 22. Qxc4 {[%clk 0:01:52]}  b5 {[%clk 0:01:33]} 23. Qc3 {[%clk 0:01:50]}  bxa4 {[%clk 0:01:22]} 24. dxc6 {[%clk 0:01:50]}  Be6 {[%clk 0:01:12]} 25. Qxe5 {[%clk 0:01:50]}  Rgd8 {[%clk 0:01:05]} 26. Nf4 {[%clk 0:01:49]}  Rxd1+ {[%clk 0:00:58]} 27. Rxd1 {[%clk 0:01:50]}  Rc8 {[%clk 0:00:58]} 28. Nd5 {[%clk 0:01:24]}  Qc5+ {[%clk 0:00:40]} 29. Kh2 {[%clk 0:01:23]}  Rxc6 {[%clk 0:00:40]} 30. Nxf6+ {[%clk 0:01:19]}  gxf6 {[%clk 0:00:41]} 31. Qxf6 {[%clk 0:01:20]}  Rc8 {[%clk 0:00:36]} 32. f4 {[%clk 0:01:10]}  Qf2 {[%clk 0:00:31]} 33. f5 {[%clk 0:01:00]}  Rg8 {[%clk 0:00:28]} 34. Rd3 {[%clk 0:00:57]}  Bc4 {[%clk 0:00:23]} 35. Rf3 {[%clk 0:00:57]}  Qd2 {[%clk 0:00:20]} 36. b3 {[%clk 0:00:52]}  Be2 {[%clk 0:00:18]} 37. Qxf7+ {[%clk 0:00:52]}  Rg7 {[%clk 0:00:17]} 38. Qxh5+ {[%clk 0:00:52]}  Qh6 {[%clk 0:00:17]} 39. Qxh6+ {[%clk 0:00:49]}  Kxh6 {[%clk 0:00:18]} 40. Re3 {[%clk 0:00:49]}  Bg4 {[%clk 0:00:18]} 41. f6 {[%clk 0:00:39]}  Rf7 {[%clk 0:00:14]} 42. e5 {[%clk 0:00:39]}  Nc5 {[%clk 0:00:14]} 43. bxa4 {[%clk 0:00:39]}  Be6 {[%clk 0:00:13]} 44. a3 {[%clk 0:00:38]}  Nxa4 {[%clk 0:00:13]} 45. g4 {[%clk 0:00:38]}  Bxg4 {[%clk 0:00:13]} 46. Bd5 {[%clk 0:00:38]}  Rf8 {[%clk 0:00:12]} 47. f7 {[%clk 0:00:38]}  Nc5 {[%clk 0:00:12]} 48. e6 {[%clk 0:00:38]}  Nxe6 {[%clk 0:00:11]} 49. Bxe6 {[%clk 0:00:39]}  Bxe6 {[%clk 0:00:10]} 50. Rxe6+ {[%clk 0:00:40]}  Kg7 {[%clk 0:00:11]} 51. Ra6 {[%clk 0:00:39]}  Rxf7 {[%clk 0:00:11]} 52. Rxa5 {[%clk 0:00:39]}  Rf3 {[%clk 0:00:11]} 53. Kg2 {[%clk 0:00:39]}  Rb3 {[%clk 0:00:11]} 54. Ra6 {[%clk 0:00:38]}  Kh7 {[%clk 0:00:11]} 55. a4 {[%clk 0:00:38]}  Kg7 {[%clk 0:00:11]} 56. a5 {[%clk 0:00:37]}  Ra3 {[%clk 0:00:12]} 57. h5 {[%clk 0:00:36]}  Kh7 {[%clk 0:00:12]} 58. h6 {[%clk 0:00:36]}  Kh8 {[%clk 0:00:10]} 59. Ra7 {[%clk 0:00:36]}  Kg8 {[%clk 0:00:10]} 60. Kf2 {[%clk 0:00:36]}  Kh8 {[%clk 0:00:10]} 61. Ke2 {[%clk 0:00:37]}  Rh3 {[%clk 0:00:07]} 62. h7 {[%clk 0:00:36]}  Re3+ {[%clk 0:00:02]} 63. Kd2 {[%clk 0:00:35]}  Rd3+ {[%clk 0:00:02]} 64. Kc2 {[%clk 0:00:35]}  Rc3+ {[%clk 0:00:03]} 65. Kb2 {[%clk 0:00:35]}  Rb3+ {[%clk 0:00:03]} 66. Ka2 {[%clk 0:00:35]}  Ra3+ {[%clk 0:00:04]} 67. Kb1 {[%clk 0:00:35]}  Rb3+ {[%clk 0:00:04]} 68. Kc2 {[%clk 0:00:36]}  Rc3+ {[%clk 0:00:05]} 69. Kxc3 {[%clk 0:00:35]} 1/2-1/2


[Site "https://www.chess.com"]

[Event "Titled Tuesday Blitz September 28 2021"]
[White "Hansen, Eric"]
[Black "Moksh Amit Doshi"]
[WhiteFideId "2606771"]
[BlackFideId "25064967"]
[WhiteElo "2890"]
[BlackElo "2647"]
[Result "0-1"]
[Round "03"]
[TimeControl "180+1"]
[Date "2021.09.28"]
[WhiteClock "0:00:04"]
[BlackClock "0:00:26"]

1. Nf3 {[%clk 0:03:00]}  d5 {[%clk 0:02:56]} 2. g3 {[%clk 0:02:58]}  g6 {[%clk 0:02:54]} 3. Bg2 {[%clk 0:02:57]}  Bg7 {[%clk 0:02:54]} 4. O-O {[%clk 0:02:56]}  Nf6 {[%clk 0:02:54]} 5. d3 {[%clk 0:02:53]}  O-O {[%clk 0:02:54]} 6. c4 {[%clk 0:02:54]}  c5 {[%clk 0:02:50]} 7. Nc3 {[%clk 0:02:52]}  Nc6 {[%clk 0:02:40]} 8. cxd5 {[%clk 0:02:48]}  Nxd5 {[%clk 0:02:41]} 9. Bd2 {[%clk 0:02:48]}  b6 {[%clk 0:02:28]} 10. Nxd5 {[%clk 0:02:45]}  Qxd5 {[%clk 0:02:27]} 11. Bc3 {[%clk 0:02:46]}  Bb7 {[%clk 0:02:21]} 12. Ne5 {[%clk 0:02:42]}  Qd6 {[%clk 0:02:20]} 13. Nc4 {[%clk 0:02:41]}  Qc7 {[%clk 0:02:19]} 14. Rc1 {[%clk 0:02:36]}  Rad8 {[%clk 0:02:19]} 15. a3 {[%clk 0:02:35]}  Bxc3 {[%clk 0:02:14]} 16. bxc3 {[%clk 0:02:36]}  Ne5 {[%clk 0:02:09]} 17. Bxb7 {[%clk 0:02:27]}  Nxc4 {[%clk 0:02:07]} 18. Bg2 {[%clk 0:02:26]}  Ne5 {[%clk 0:01:56]} 19. a4 {[%clk 0:02:26]}  Nc6 {[%clk 0:01:52]} 20. Qb3 {[%clk 0:02:24]}  e5 {[%clk 0:01:50]} 21. Rfd1 {[%clk 0:02:20]}  Kg7 {[%clk 0:01:49]} 22. e3 {[%clk 0:02:14]}  Qd6 {[%clk 0:01:43]} 23. Qb5 {[%clk 0:02:14]}  Na5 {[%clk 0:01:41]} 24. d4 {[%clk 0:02:09]}  exd4 {[%clk 0:01:34]} 25. cxd4 {[%clk 0:02:08]}  cxd4 {[%clk 0:01:30]} 26. Rxd4 {[%clk 0:02:08]}  Qf6 {[%clk 0:01:29]} 27. Rf4 {[%clk 0:02:04]}  Qe7 {[%clk 0:01:26]} 28. h4 {[%clk 0:02:00]}  h5 {[%clk 0:01:25]} 29. Bf3 {[%clk 0:01:54]}  Rd7 {[%clk 0:01:24]} 30. Qb2+ {[%clk 0:01:42]}  Kg8 {[%clk 0:01:19]} 31. Re4 {[%clk 0:01:37]}  Qd6 {[%clk 0:01:13]} 32. Kg2 {[%clk 0:01:38]}  Rfd8 {[%clk 0:01:12]} 33. g4 {[%clk 0:01:26]}  hxg4 {[%clk 0:01:09]} 34. Rxg4 {[%clk 0:01:25]}  Qd2 {[%clk 0:01:06]} 35. Rc2 {[%clk 0:01:24]}  Qe1 {[%clk 0:01:00]} 36. h5 {[%clk 0:01:22]}  Rd2 {[%clk 0:00:57]} 37. Rxd2 {[%clk 0:00:50]}  Rxd2 {[%clk 0:00:58]} 38. Rxg6+ {[%clk 0:00:40]}  fxg6 {[%clk 0:00:57]} 39. Bd5+ {[%clk 0:00:41]}  Rxd5 {[%clk 0:00:56]} 40. Qf6 {[%clk 0:00:41]}  Rd7 {[%clk 0:00:47]} 41. Qe6+ {[%clk 0:00:41]}  Kf8 {[%clk 0:00:40]} 42. Qxd7 {[%clk 0:00:36]}  gxh5 {[%clk 0:00:41]} 43. Qf5+ {[%clk 0:00:32]}  Ke8 {[%clk 0:00:41]} 44. Qxh5+ {[%clk 0:00:31]}  Kd8 {[%clk 0:00:41]} 45. Qd5+ {[%clk 0:00:29]}  Kc7 {[%clk 0:00:41]} 46. Qf7+ {[%clk 0:00:29]}  Kc6 {[%clk 0:00:40]} 47. Qxa7 {[%clk 0:00:29]}  Qd1 {[%clk 0:00:39]} 48. Qb8 {[%clk 0:00:17]}  Qg4+ {[%clk 0:00:38]} 49. Kf1 {[%clk 0:00:15]}  Qc4+ {[%clk 0:00:38]} 50. Kg2 {[%clk 0:00:14]}  Qd5+ {[%clk 0:00:39]} 51. Kg1 {[%clk 0:00:14]}  Kc5 {[%clk 0:00:37]} 52. Qf4 {[%clk 0:00:09]}  Nc6 {[%clk 0:00:35]} 53. e4 {[%clk 0:00:10]}  Qd1+ {[%clk 0:00:35]} 54. Kg2 {[%clk 0:00:10]}  Qd4 {[%clk 0:00:36]} 55. Qf5+ {[%clk 0:00:08]}  Qe5 {[%clk 0:00:33]} 56. Qf3 {[%clk 0:00:05]}  Nd4 {[%clk 0:00:31]} 57. Qc3+ {[%clk 0:00:04]}  Kd6 {[%clk 0:00:31]} 58. f3 {[%clk 0:00:04]}  Qg7+ {[%clk 0:00:30]} 59. Kf1 {[%clk 0:00:04]}  Qf6 {[%clk 0:00:30]} 60. Kf2 {[%clk 0:00:03]}  Qh4+ {[%clk 0:00:27]} 61. Ke3 {[%clk 0:00:03]}  Nc6 {[%clk 0:00:27]} 62. Qd2+ {[%clk 0:00:03]}  Kc7 {[%clk 0:00:26]} 63. Qc3 {[%clk 0:00:04]}  Qg5+ {[%clk 0:00:26]} 64. Kf2 {[%clk 0:00:03]}  Qh4+ {[%clk 0:00:25]} 65. Ke2 {[%clk 0:00:03]}  Qh2+ {[%clk 0:00:24]} 66. Kf1 {[%clk 0:00:04]}  Qe5 {[%clk 0:00:23]} 67. Qxe5+ {[%clk 0:00:02]}  Nxe5 {[%clk 0:00:24]} 68. Ke2 {[%clk 0:00:03]}  Kd6 {[%clk 0:00:24]} 69. f4 {[%clk 0:00:03]}  Nc4 {[%clk 0:00:23]} 70. Kd3 {[%clk 0:00:02]}  Nb2+ {[%clk 0:00:21]} 71. Kc3 {[%clk 0:00:02]}  Nxa4+ {[%clk 0:00:22]} 72. Kb4 {[%clk 0:00:03]}  Nc5 {[%clk 0:00:22]} 73. Kb5 {[%clk 0:00:03]}  Kc7 {[%clk 0:00:22]} 74. e5 {[%clk 0:00:03]}  Nd7 {[%clk 0:00:22]} 75. e6 {[%clk 0:00:02]}  Nf6 {[%clk 0:00:22]} 76. f5 {[%clk 0:00:03]}  Kb7 {[%clk 0:00:22]} 77. Kc4 {[%clk 0:00:01]}  Kc6 {[%clk 0:00:22]} 78. Kd4 {[%clk 0:00:02]}  Kd6 {[%clk 0:00:21]} 79. Kc4 {[%clk 0:00:02]}  Kc6 {[%clk 0:00:19]} 80. Kd4 {[%clk 0:00:02]}  Kd6 {[%clk 0:00:18]} 81. Kc4 {[%clk 0:00:03]}  Ne8 {[%clk 0:00:19]} 82. Kb5 {[%clk 0:00:03]}  Kc7 {[%clk 0:00:19]} 83. Kb4 {[%clk 0:00:02]}  Kc6 {[%clk 0:00:19]} 84. Kc3 {[%clk 0:00:02]}  Kd5 {[%clk 0:00:19]} 85. Kb4 {[%clk 0:00:01]}  Kc6 {[%clk 0:00:19]} 86. Kc3 {[%clk 0:00:02]}  Kc5 {[%clk 0:00:19]} 87. Kb3 {[%clk 0:00:02]}  b5 {[%clk 0:00:20]} 88. Kc3 {[%clk 0:00:02]}  b4+ {[%clk 0:00:21]} 89. Kb3 {[%clk 0:00:03]}  Kb5 {[%clk 0:00:22]} 90. e7 {[%clk 0:00:04]}  Kc5 {[%clk 0:00:22]} 91. Kb2 {[%clk 0:00:04]}  Kc4 {[%clk 0:00:22]} 92. Kc2 {[%clk 0:00:04]}  b3+ {[%clk 0:00:23]} 93. Kb1 {[%clk 0:00:04]}  Kb4 {[%clk 0:00:24]} 94. Kb2 {[%clk 0:00:04]}  Kc4 {[%clk 0:00:25]} 95. Kb1 {[%clk 0:00:04]}  Kc3 {[%clk 0:00:25]} 96. Kc1 {[%clk 0:00:04]}  Nf6 {[%clk 0:00:23]} 97. Kb1 {[%clk 0:00:01]}  b2 {[%clk 0:00:22]} 98. e8=Q {[%clk 0:00:02]}  Nxe8 {[%clk 0:00:22]} 99. f6 {[%clk 0:00:02]}  Nxf6 {[%clk 0:00:23]} 100. Ka2 {[%clk 0:00:02]}  Kc2 {[%clk 0:00:23]} 101. Ka3 {[%clk 0:00:03]}  b1=Q {[%clk 0:00:24]} 102. Ka4 {[%clk 0:00:03]}  Qb6 {[%clk 0:00:25]} 103. Ka3 {[%clk 0:00:04]}  Qb3# {[%clk 0:00:26]} 0-1


[Site "https://www.chess.com"]

[Event "Titled Tuesday Blitz September 28 2021"]
[White "Harshavardhan G B"]
[Black "Vusatiuk, Vladimir"]
[WhiteFideId "25059009"]
[BlackFideId "14118610"]
[WhiteElo "1825"]
[BlackElo "2167"]
[Result "1-0"]
[Round "03"]
[TimeControl "180+1"]
[Date "2021.09.28"]
[WhiteClock "0:02:09"]
[BlackClock "0:02:03"]

1. e4 {[%clk 0:03:00]}  c5 {[%clk 0:02:59]} 2. Nc3 {[%clk 0:02:59]}  Nc6 {[%clk 0:02:59]} 3. Nf3 {[%clk 0:02:58]}  d6 {[%clk 0:02:59]} 4. d4 {[%clk 0:02:58]}  cxd4 {[%clk 0:03:00]} 5. Nxd4 {[%clk 0:02:58]}  Nf6 {[%clk 0:03:01]} 6. Bg5 {[%clk 0:02:57]}  Bd7 {[%clk 0:03:01]} 7. Qd2 {[%clk 0:02:57]}  Rc8 {[%clk 0:03:00]} 8. O-O-O {[%clk 0:02:54]}  Nxd4 {[%clk 0:03:00]} 9. Qxd4 {[%clk 0:02:54]}  Qa5 {[%clk 0:03:01]} 10. f4 {[%clk 0:02:50]}  Rxc3 {[%clk 0:02:56]} 11. Bxf6 {[%clk 0:02:41]}  Rc8 {[%clk 0:02:32]} 12. Bxg7 {[%clk 0:02:37]}  e5 {[%clk 0:02:32]} 13. Bxe5 {[%clk 0:02:36]}  Rg8 {[%clk 0:02:18]} 14. Bxd6 {[%clk 0:02:27]}  Qxa2 {[%clk 0:02:13]} 15. Bxf8 {[%clk 0:02:22]}  Qa1+ {[%clk 0:02:11]} 16. Kd2 {[%clk 0:02:19]}  Qa5+ {[%clk 0:02:11]} 17. Bb4 {[%clk 0:02:17]}  Qc7 {[%clk 0:02:06]} 18. Qe5+ {[%clk 0:02:11]}  Qxe5 {[%clk 0:02:05]} 19. fxe5 {[%clk 0:02:12]}  Bb5 {[%clk 0:02:03]} 20. Bxb5+ {[%clk 0:02:09]} 1-0


[Site "https://www.chess.com"]

[Event "Titled Tuesday Blitz September 28 2021"]
[White "Iskusnyh, Sergei"]
[Black "LEGENYA1998"]
[WhiteFideId "4120027"]
[WhiteElo "2492"]
[BlackElo "2427"]
[Result "1-0"]
[Round "03"]
[TimeControl "180+1"]
[Date "2021.09.28"]
[WhiteClock "0:00:51"]
[BlackClock "0:00:49"]

1. d4 {[%clk 0:03:00]}  d5 {[%clk 0:02:56]} 2. c4 {[%clk 0:03:00]}  Nc6 {[%clk 0:02:56]} 3. Nf3 {[%clk 0:02:51]}  Bg4 {[%clk 0:02:55]} 4. cxd5 {[%clk 0:02:44]}  Bxf3 {[%clk 0:02:55]} 5. gxf3 {[%clk 0:02:41]}  Qxd5 {[%clk 0:02:55]} 6. e3 {[%clk 0:02:41]}  e5 {[%clk 0:02:56]} 7. Nc3 {[%clk 0:02:40]}  Bb4 {[%clk 0:02:55]} 8. Bd2 {[%clk 0:02:39]}  Bxc3 {[%clk 0:02:55]} 9. bxc3 {[%clk 0:02:40]}  exd4 {[%clk 0:02:52]} 10. cxd4 {[%clk 0:02:39]}  Nge7 {[%clk 0:02:46]} 11. Rb1 {[%clk 0:02:34]}  b6 {[%clk 0:02:41]} 12. Rc1 {[%clk 0:02:20]}  O-O {[%clk 0:02:40]} 13. Bc4 {[%clk 0:02:19]}  Qh5 {[%clk 0:02:39]} 14. f4 {[%clk 0:02:18]}  Qh3 {[%clk 0:02:34]} 15. Bf1 {[%clk 0:02:15]}  Qf5 {[%clk 0:02:30]} 16. Bg2 {[%clk 0:02:14]}  Qb5 {[%clk 0:02:03]} 17. Qb3 {[%clk 0:02:10]}  Qh5 {[%clk 0:01:32]} 18. Rxc6 {[%clk 0:01:58]}  Nxc6 {[%clk 0:01:30]} 19. Bxc6 {[%clk 0:01:58]}  Rad8 {[%clk 0:01:28]} 20. Bb4 {[%clk 0:01:50]}  Rfe8 {[%clk 0:01:23]} 21. Bxe8 {[%clk 0:01:48]}  Rxe8 {[%clk 0:01:21]} 22. Qa4 {[%clk 0:01:31]}  Re6 {[%clk 0:01:13]} 23. Qd7 {[%clk 0:01:26]}  h6 {[%clk 0:01:11]} 24. Rg1 {[%clk 0:01:04]}  Qxh2 {[%clk 0:01:07]} 25. Rg3 {[%clk 0:00:57]}  c5 {[%clk 0:01:07]} 26. dxc5 {[%clk 0:00:53]}  bxc5 {[%clk 0:01:07]} 27. Bc3 {[%clk 0:00:52]}  Rg6 {[%clk 0:00:49]} 28. Rxg6 {[%clk 0:00:51]} 1-0


[Site "https://www.chess.com"]

[Event "Titled Tuesday Blitz September 28 2021"]
[White "Jain Kashish Manoj"]
[Black "Maly, Alexey"]
[WhiteFideId "35081098"]
[BlackFideId "14103184"]
[WhiteElo "1681"]
[BlackElo "2250"]
[Result "1/2-1/2"]
[Round "03"]
[TimeControl "180+1"]
[Date "2021.09.28"]
[WhiteClock "0:01:50"]
[BlackClock "0:02:03"]

1. Nf3 {[%clk 0:03:00]}  c5 {[%clk 0:02:59]} 2. g3 {[%clk 0:03:00]}  Nc6 {[%clk 0:02:59]} 3. Bg2 {[%clk 0:03:00]}  g6 {[%clk 0:02:58]} 4. O-O {[%clk 0:03:01]}  Bg7 {[%clk 0:02:58]} 5. c4 {[%clk 0:03:01]}  e6 {[%clk 0:02:57]} 6. Nc3 {[%clk 0:02:59]}  Nge7 {[%clk 0:02:56]} 7. Ne4 {[%clk 0:02:33]}  d6 {[%clk 0:02:53]} 8. d3 {[%clk 0:02:27]}  O-O {[%clk 0:02:49]} 9. Bg5 {[%clk 0:02:21]}  f6 {[%clk 0:02:44]} 10. Bf4 {[%clk 0:02:19]}  e5 {[%clk 0:02:42]} 11. Bd2 {[%clk 0:02:19]}  b6 {[%clk 0:02:35]} 12. Qc1 {[%clk 0:02:16]}  Bb7 {[%clk 0:02:33]} 13. Bh6 {[%clk 0:02:16]}  d5 {[%clk 0:02:31]} 14. cxd5 {[%clk 0:02:13]}  Nxd5 {[%clk 0:02:32]} 15. Bxg7 {[%clk 0:02:10]}  Kxg7 {[%clk 0:02:33]} 16. Nc3 {[%clk 0:02:02]}  Nd4 {[%clk 0:02:23]} 17. Nxd4 {[%clk 0:02:02]}  cxd4 {[%clk 0:02:20]} 18. Nxd5 {[%clk 0:01:55]}  Bxd5 {[%clk 0:02:20]} 19. Bxd5 {[%clk 0:01:53]}  Qxd5 {[%clk 0:02:21]} 20. Qc7+ {[%clk 0:01:53]}  Rf7 {[%clk 0:02:21]} 21. Qc2 {[%clk 0:01:54]}  Rff8 {[%clk 0:02:12]} 22. Rfc1 {[%clk 0:01:53]}  Qd7 {[%clk 0:02:05]} 23. Qc7 {[%clk 0:01:53]}  Rfd8 {[%clk 0:02:03]} 24. Rc6 {[%clk 0:01:50]} 1/2-1/2


[Site "https://www.chess.com"]